Cogmind - Beta 10.2 @@@ ROGUE MODE // 2020.11.06 @ 23:04:00 Player: amb Result: Destroyed by G-34 Mercenary with Small Laser Performance ------------- Evolutions (0) 0 Regions Visited (1) 200 Robots Destroyed (10) 50 Value Destroyed (161) 161 Prototype IDs (0) 0 Alien Tech Used (0) 0 Bonus (0) 0 TOTAL SCORE: 411 Bonus ------- None Cogmind --------- Core Integrity 0/250 Matter 300/300 Energy 60/100 System Corruption 0% Temperature Cool (6) Movement Core (100) Ox1 Location -10/Materials Parts ------- > --- POWER (1) -------- (None) > --- PROPULSION (2) --- (None) > --- UTILITY (2) ------ Small Storage Unit > --- WEAPON (2) ------- (None) > --- INVENTORY (6) ---- Light Ion Engine Aluminum Leg Targeting Computer Light Armor Plating Assault Rifle Light Assault Rifle Peak State ------------ > --- POWER ------------ Light Ion Engine > --- PROPULSION ------- Wheel Wheel > --- UTILITY ---------- Small Storage Unit ECM Suite > --- WEAPON ----------- Small Laser Assault Rifle > --- INVENTORY -------- Light Ion Engine Targeting Computer Grenade Launcher [Rating: 7] Favorites ----------- Power Light Ion Engine Engine Light Ion Engine Propulsion Wheel Leg Aluminum Leg Wheel Wheel Utility Small Storage Unit Device ECM Suite Storage Small Storage Unit Weapon Assault Rifle Energy Gun Small Laser Ballistic Gun Assault Rifle Build | -11 -10 ------- Run | Scr Mat Slots Evolved . | . . Power . | . . Propulsion . | . . Utility . | . . Weapon . | . . Parts Attached 11 | 9 2 Power 1 | 1 . Engine 1 | 1 . Core . | . . Reactor . | . . Propulsion 5 | 4 1 Treads . | . . Leg 3 | 2 1 Wheel 2 | 2 . Hover . | . . Flight . | . . Utility 3 | 2 1 Device 1 | . 1 Storage 2 | 2 . Processor . | . . Hackware . | . . Protection . | . . Artifact . | . . Weapon 2 | 2 . Energy Gun 1 | 1 . Energy Cannon . | . . Ballistic Gun 1 | 1 . Ballistic Cannon . | . . Launcher . | . . Special Weapon . | . . Impact Weapon . | . . Slashing Weapon . | . . Piercing Weapon . | . . Special Melee Weapon . | . . Unidentified Prototypes . | . . Parts Lost 7 | . 7 Power 1 | . 1 Propulsion 3 | . 3 Utility 1 | . 1 Weapon 2 | . 2 Highest Loss Streak 3 | . 3 Average Slot Usage (%) 84 | . 84 Engine 10 | . 10 Leg 3 | . 3 Wheel 19 | . 19 Device 12 | . 12 Storage 14 | . 14 Energy Gun 8 | . 8 Ballistic Gun 13 | . 13 Naked Turns . | . . Heaviest Build 11 | 10 11 Greatest Support 20 | 20 20 Greatest Overweight (x) . | . . Average Overweight (x) . | . . Largest Inventory Capacity 6 | 6 6 Average Capacity 5 | 4 6 Most Carried 6 | 4 6 Average Carried 4 | 1 5 Final Capacity 6 | 6 6 Final Carried 6 | 1 6 Class Distribution -------------------- 100% | Mutant Dominant Class ---------------- Mutant | -10/Materials Resources | -11 -10 ----------- Run | Scr Mat Matter Collected 409 | 214 195 Remotely . | . . Salvage Created 213 | . 213 Parts 25 | . 25 Haulers Intercepted . | . . Recyclers Shooed . | . . Parts Field Recycled . | . . Retrieved Matter . | . . Parts Self-Destructed . | . . Prevented . | . . Kills | -11 -10 ------- Run | Scr Mat Combat Hostiles Destroyed 8 | . 8 Guns 8 | . 8 Classes Destroyed 3 | . 3 Builder 2 | . 2 Swarmer 6 | . 6 Grunt 2 | . 2 Best Kill Streak 4 | . 4 Combat Bots Only 3 | . 3 Max Kills in Single Turn 1 | . 1 Gunslinging . | . . Exploded . | . . Melee . | . . Uniques/NPCs Destroyed . | . . Combat | -11 -10 -------- Run | Scr Mat Damage Taken 748 | 1 747 Core 253 | . 253 Absorbed by Shields . | . . Core Remaining (%) 100 | 100 . Volleys Fired 42 | . 42 Largest 2 | . 2 Hottest 60 | . 60 Shots Fired 57 | . 57 Gun 57 | . 57 Cannon . | . . Launcher . | . . Special . | . . Kinetic 42 | . 42 Thermal 15 | . 15 Explosive . | . . Electromagnetic . | . . Robot Hit Streak 7 | . 7 Robot Miss Streak 5 | . 5 Penetration Max . | . . Secondary Targets 1 | . 1 Max Gunslinging Chain 1 | . 1 Shots Hit Robots 27 | . 27 Core Hits 12 | . 12 Critical Hits . | . . Critical Kills . | . . Critical Parts Destroyed . | . . Melee Attacks . | . . Impact . | . . Slashing . | . . Piercing . | . . Sneak Attacks . | . . Combat Hostiles . | . . Follow-up Attacks . | . . Damage Inflicted 312 | 2 310 Guns 304 | . 304 Cannons . | . . Explosions . | . . Melee . | . . Ramming 8 | 2 6 Kinetic 250 | . 250 Thermal 54 | . 54 Explosive . | . . Electromagnetic . | . . Impact . | . . Slashing . | . . Piercing . | . . Highest Corruption . | . . Average Corruption . | . . Corruption Purged . | . . Overload Shots . | . . Overflow Damage . | . . Projectiles . | . . Explosions . | . . Melee . | . . Knockbacks . | . . Impact . | . . Kinetic . | . . Secondary . | . . Self-Inflicted Damage 4 | 1 3 Shots . | . . Rammed 2 | 1 1 Targets Rammed 2 | 1 1 Kicked . | . . Crushed . | . . Highest Temperature 51 | . 51 Average Temperature 26 | . 26 Received Heat Transfer 252 | . 252 Siege Activations . | . . Robots Corrupted . | . . Combat Hostiles . | . . Parts Fried . | . . Impact Corruptions . | . . Robots Melted . | . . Combat Hostiles . | . . Parts Melted . | . . Heat Transferred 125 | . 125 Parts Sabotaged . | . . Parts Stolen . | . . Parts Stripped . | . . Power Chain Reactions . | . . Missiles Intercepted . | . . Alert | -11 -10 ------- Run | Scr Mat Peak Influence 205 | . 205 Initial . | . . Average 55 | . 69 Maximum Alert Level 1 | . 1 Low Security (%) 99 | 100 98 Level 1 . | . 1 Level 2 . | . . Level 3 . | . . Level 4 . | . . Level 5 . | . . High Security . | . . Max Security . | . . Squads Dispatched 2 | . 2 Investigation 1 | . 1 Extermination . | . . Reinforcement 1 | . 1 Assault . | . . Garrison . | . . Intercept . | . . Construction Impeded . | . . Haulers Reinforced . | . . Stealth | -11 -10 --------- Run | Scr Mat Distress Signals . | . . Communications Jammed . | . . Distress Signals . | . . Times Spotted 15 | . 15 Peak Tracking Total 3 | . 3 Tactical Retreats 1 | . 1 Traps | -11 -10 ------- Run | Scr Mat Traps Triggered 1 | . 1 Indirectly . | . . Trap Hack Attempts . | . . Triggered . | . . Disarmed . | . . Reprogrammed . | . . Reused . | . . Traps Extracted . | . . Installed . | . . Triggered . | . . Machines | -11 -10 ---------- Run | Scr Mat Machines Disabled 1 | . 1 Max in Single Turn 1 | . 1 Machines Sabotaged . | . . Garrisons Compromised . | . . Overloaded Fab Kills . | . . Fab Network Shutdowns . | . . Hacking | -11 -10 --------- Run | Scr Mat Machines Accessed . | . . Terminals . | . . Fabricators . | . . Repair Stations . | . . Recycling Units . | . . Scanalyzers . | . . Garrison Access . | . . Total Hacks . | . . Successful . | . . Failed . | . . Catastrophic . | . . Database Lockouts . | . . Manual . | . . Terminals . | . . Fabricators . | . . Repair Stations . | . . Recycling Units . | . . Scanalyzers . | . . Garrison Access . | . . Terminal Hacks . | . . Fabricator Hacks . | . . Repair Station Hacks . | . . Recycling Unit Hacks . | . . Scanalyzer . | . . Garrison Access Hacks . | . . Unauthorized Hacks . | . . Terminals . | . . Fabricators . | . . Repair Stations . | . . Recycling Units . | . . Scanalyzers . | . . Garrison Access . | . . Data Cores Recovered . | . . Used . | . . Hacking Detections . | . . Full Trace Events . | . . Feedback Events . | . . Feedback Blocked . | . . Robot Schematics Acquired . | . . Robots Built . | . . Matter . | . . Time . | . . Total Robot Build Rating . | . . Part Schematics Acquired . | . . Parts Built . | . . Matter . | . . Time . | . . Total Part Build Rating . | . . Parts Repaired . | . . Time . | . . Parts Recycled . | . . Recycled Matter . | . . Retrieved Matter . | . . Retrieved Components . | . . Parts Scanalyzed . | . . Part Schematics Acquired . | . . Parts Damaged . | . . Bothacking | -11 -10 ------------ Run | Scr Mat Used RIF Installer . | . . Robots Hacked . | . . Non-combat . | . . Combat . | . . Robot Hacks Applied . | . . Relay Couplers Released . | . . Robots Rewired . | . . Allies Hacked . | . . Hacks Repelled . | . . Allies | -11 -10 -------- Run | Scr Mat Total Allies . | . . Largest Group . | . . Highest-Rated Group . | . . Highest-Rated Ally . | . . Total Orders . | . . Ally Attacks . | . . Total Damage . | . . Kills . | . . Allies Corrupted . | . . Allies Melted . | . . Intel | -11 -10 ------- Run | Scr Mat Robot Analysis Total . | . . Derelict Logs Recovered . | . . Drone Launches . | . . Drone Recoveries . | . . Exploration | -11 -10 ------------- Run | Scr Mat Turns Passed 633 | 129 504 Spaces Moved 508 | 110 398 Core 12 | 12 . Treads . | . . Legs 133 | 67 66 Wheels 363 | 31 332 Hover . | . . Flight . | . . Fastest Speed 50 | 50 80 Average Speed 89 | 101 86 Slowest Speed 120 | 120 120 Overloaded Moves . | . . Propulsion Burnouts . | . . Robots Hopped . | . . Cave-ins Triggered . | . . Exploration Rate (%) 34 | 5 63 Regions Visited 1 Branch Regions . Pre-discovered Areas . | . . Known Exits Taken . | . . Unknown Exits Taken 1 | 1 . Scrap Searched . | . . Spaces Dug . | . . Terrain Destroyed . | . . Melee . | . . Projectile . | . . AOE . | . . Terrain Rammed . | . . Walls Destroyed . | . . Machines Disabled . | . . Actions | -11 -10 --------- Run | Scr Mat Total 626 | 126 500 Wait 49 | . 49 Move 507 | 109 398 Hop . | . . Pick Up 10 | 3 7 Fast Attach 7 | 6 1 Attach 4 | 3 1 Detach 2 | 2 . Swap . | . . Drop 3 | 2 1 Fire 42 | . 42 Melee . | . . Ram 1 | . 1 Kick 1 | 1 . Crush . | . . Escape Stasis . | . . Rewire . | . . Trap . | . . Miscellaneous . | . . Route ------- -11/Scrapyard -10/Materials (discovered 3 exits: [*Mat] / [*Min x2]) History --------- Turn | Location | Event 10 | -11/Scrapyard | Discovered new exit (range 15) 130 | -11/Scrapyard | Entered Materials 182 | -10/Materials | Discovered new exit (range 7) 316 | -10/Materials | Build established: Mutant 402 | -10/Materials | Discovered new exit (range 8) 574 | -10/Materials | Discovered new exit (range 16) 619 | -10/Materials | Core integrity fell below 50% 627 | -10/Materials | Core integrity fell below 20% 634 | -10/Materials | Destroyed by G-34 Mercenary with Small Laser Last Messages --------------- Acquired 22 matter. Processing Tank disabled. S-10 Pest destroyed. Acquired 16 matter. Wheel destroyed. Lgt. Ion Engine destroyed. [Achievement: Storm Trooper] S-10 Pest destroyed. Acquired 13 matter. Acquired 16 matter. K-01 Serf collects debris. EXIT=FOUND K-01 Serf collects debris. Triggered Alarm Trap. An alarm sounds. ALERT: Alarm triggered, dispatching investigation squad. K-01 Serf collects debris. Aluminum Leg destroyed. Assault Rifle destroyed. ECM Suite destroyed. Map ----- +----------------------------------------------------+ | ????# #???#! """"" #??????????????? | | ##???# #???# !""""" #??????????????? | | #???# #???# #??????????????? | | #####+#######+######???#??????????? | | # T #?# #??????? #??????????? | | # ^ #?# #?????? #??????????? | | # """ """ #?# #????? ##?????????? | | ## """ """ ### ##### #?????????? | | # """ """ ## #?????????? | | # ## T +?????????? | | + ## #?????????? | | # ## #### #?????????? | | ############ #????#####?????????? | | #?????????# #??????????????????? | | #?????????+ +??????????????????? | | #?????????# #??????????????????? | | #?????????# #???#+#????????????? | | #????????## ##??# #????#???????? | | #????????#! #### #### #???????? | | #????????# #???????? | | ##????????# #??????????? | | ?????????# ########???? | | ?????????# # #???? | | ?????????##### # "T" #???? | | ?????????????# # #???? | | ?????????????# g@ #???? | | ?????????????# gg# #???? | | ???????????????# # #???? | | ???????????????# ########???? | | ???????????????# ##??????????? | | ???????????????# #???????????? | | ???????????????# #???????????? | | ?????????????? #???????????? | | ????????????? #???????????? | | ???????????? #???????????? | | ???????????##### #???????????? | | ???????????????# #???????????? | | ???????????????# #???????????? | | ???????????????# ????????????? | | ?????????????????? ????????????? | | ???????????????????? < ????????????? | | ???????????????????????????????????? | | ???????????????????????????????????? | | ???????????????????????????????????? | | ???????????????????????????????????? | | ???????????????????????????????????? | | ???????????????????????????????????? | | ???????????????????????????????????? | | ???????????????????????????????????? | | ???????????????????????????????????? | +----------------------------------------------------+ Best States ------------- Heat Dissipation 25 Energy Generation 10 Energy Capacity 125 Matter Stores 300 Matter Capacity 300 Sight Range 16 Terrain Scan Density 10 ECM Strength 1 Evasion (%) 44 Item Schematics ----------------- None Robot Schematics ------------------ None Fabricated ------------ Nothing Alien Tech Used ----------------- None Achievements -------------- Storm Trooper Challenges ------------ None Game ------ Seed StorageModifiedTearclaws Manual? 0 Play Time 00:11:24 Cumulative 1.4 hours Start 2020.11.06 @ 22:55:28 End 2020.11.06 @ 23:04:00 Sessions 1 Manual Loads 0 Difficulty Rogue Special Mode None Game No. 4 Rogue 2 Adventurer 2 Explorer 0 Win Type - Total 0 Types 0/0/0/0/0/0/0/0/0 Lore% 3 Gallery% 3 Achievement% 5 Wizard Run 0 Options --------- ASCII 0 Keyboard 0 Movement Numpad Keybinds 0 Fullscreen 1 Font 18/Terminus Map View 76x50 Tactical HUD 0 Map Filters NONE Filters NONE Steam 1 RUN: ccab4761-4848-4e6d-8b9c-2e5f1ab27fca